[Event "SVK-ch Open 2018"]
[Site "Banska Stiavnica"]
[Date "2018.07.14"]
[Round "8"]
[White "Brnusak, Andrej"]
[Black "Bartek, Ladislav"]
[Result "1/2-1/2"]
[ECO "C68"]
[WhiteElo "1866"]
[BlackElo "2049"]
[Annotator "NA"]
[PlyCount "80"]
[EventDate "2018.07.07"]
[EventType "swiss"]
[EventCountry "SVK"]
[SourceTitle "playchess.com"]
[Source "ChessBase"]
[SourceQuality "1"]
[TimeControl "40/5400+30:1800+30"]

1. e4 {[%emt 0:00:00]} e5 {[%emt 0:00:00]} 2. Nf3 {[%emt 0:00:00]} Nc6 {[%emt 0:00:00]} 3. Bb5 {[%emt 0:00:00]} a6 {[%emt 0:00:00]} 4. Bxc6 {[%emt 0:00:00]} dxc6 {[%emt 0:00:00]} 5. O-O {[%emt 0:00:10]} f6 {[%emt 0:00:15]} 6. d4 {[%emt 0:00:15]} Bg4 {[%emt 0:00:08]} 7. dxe5 {[%emt 0:00:18]} Qxd1 {[%emt 0:00:08]} 8. Rxd1 {[%emt 0:00:07]} fxe5 {[%emt 0:00:05]} 9. Nbd2 {[%emt 0:00:15]} O-O-O {[%emt 0:01:09]} 10. Re1 {[%emt 0:00:20]} Re8 {[%emt 0:00:45]} 11. h3 {[%emt 0:00:23]} Bh5 {[%emt 0:01:34]} 12. g4 {[%emt 0:00:39]} Bg6 {[%emt 0:00:11]} 13. b3 {[%emt 0:00:29]} Nf6 {[%emt 0:01:05]} 14. Bb2 {[%emt 0:00:12]} Nd7 {[%emt 0:03:05]} 15. Nc4 {[%emt 0:05:18]} Bd6 {[%emt 0:05:05]} 16. Nh4 {[%emt 0:13:41]} Bb4 {[%emt 0:12:22]} 17. Re2 {[%emt 0:05:07]} b5 {[%emt 0:00:21]} 18. Nd2 {[%emt 0:03:26]} Bxd2 {[%emt 0:00:39]} 19. Rxd2 {[%emt 0:01:33]} Bxe4 {[%emt 0:00:33]} 20. Re2 {[%emt 0:01:56]} Bd5 {[%emt 0:01:29]} 21. Rae1 {[%emt 0:01:53]} g6 {[%emt 0:02:27]} 22. f4 {[%emt 0:04:11]} Rhf8 {[%emt 0:00:12]} 23. fxe5 {[%emt 0:00:48]} Re6 {[%emt 0:00:35]} 24. Ng2 {[%emt 0:04:37]} Rf3 {[%emt 0:03:30]} 25. Re3 {[%emt 0:04:58]} Rxe3 {[%emt 0:01:38]} 26. Rxe3 {[%emt 0:00:10]} g5 {[%emt 0:01:36]} 27. Ne1 {[%emt 0:07:37]} c5 {[%emt 0:00:13]} 28. Kf2 {[%emt 0:07:41]} c4 {[%emt 0:00:16]} 29. Nf3 {[%emt 0:03:42]} Bxf3 {[%emt 0:00:40]} 30. Kxf3 {[%emt 0:00:46]} cxb3 {[%emt 0:01:11]} 31. cxb3 {[%emt 0:01:35]} Kd8 {[%emt 0:00:24]} 32. Ke4 {[%emt 0:04:51]} Ke7 {[%emt 0:00:42]} 33. Ba3+ {[%emt 0:02:26]} c5 {[%emt 0:04:28]} 34. Kd5 {[%emt 0:01:16]} b4 {[%emt 0:00:12]} 35. Bc1 {[%emt 0:01:37]} h6 {[%emt 0:01:17]} 36. Re4 {[%emt 0:04:05]} Rb6 {[%emt 0:05:33]} 37. Re2 {[%emt 0:05:48]} Rb5 {[%emt 0:04:23]} 38. Be3 {[%emt 0:02:09]} c4+ {[%emt 0:01:16]} 39. Kxc4 {[%emt 0:00:21]} Nxe5+ {[%emt 0:00:22]} 40. Kd4 {[%emt 0:00:41]} Ke6 {[%emt 0:00:45]} 1/2-1/2

[Event "SVK-ch Open 2018"]
[Site "Banska Stiavnica"]
[Date "2018.07.14"]
[Round "8"]
[White "Huncar, Martin"]
[Black "Toma, Rudolf"]
[Result "0-1"]
[ECO "B10"]
[WhiteElo "1840"]
[BlackElo "2018"]
[Annotator "NA"]
[PlyCount "56"]
[EventDate "2018.07.07"]
[EventType "swiss"]
[EventCountry "SVK"]
[SourceTitle "playchess.com"]
[Source "ChessBase"]
[SourceQuality "1"]
[TimeControl "40/5400+30:1800+30"]

1. e4 {[%emt 0:00:00]} c6 {[%emt 0:00:00]} 2. Nc3 {[%emt 0:00:00]} e5 {[%emt 0:00:30]} 3. d4 {[%emt 0:00:21]} exd4 {[%emt 0:01:49]} 4. Qxd4 {[%emt 0:00:04]} d6 {[%emt 0:00:16]} 5. Nf3 {[%emt 0:03:13]} Nf6 {[%emt 0:00:51]} 6. Bc4 {[%emt 0:04:45]} Be7 {[%emt 0:01:09]} 7. Bf4 {[%emt 0:03:25]} b5 {[%emt 0:02:29]} 8. Bb3 {[%emt 0:04:58]} c5 {[%emt 0:00:22]} 9. Qd2 {[%emt 0:06:40]} c4 {[%emt 0:00:38]} 10. Nxb5 {[%emt 0:00:18]} cxb3 {[%emt 0:00:07]} 11. Bxd6 {[%emt 0:12:45]} O-O {[%emt 0:07:09]} 12. Nc7 {[%emt 0:12:27]} Nxe4 {[%emt 0:02:41]} 13. Bxe7 {[%emt 0:10:40]} Qxe7 {[%emt 0:10:39]} 14. Nd5 {[%emt 0:00:55]} Qc5 {[%emt 0:00:57]} 15. Qd4 {[%emt 0:02:11]} bxc2 {[%emt 0:21:39]} 16. Qxc5 {[%emt 0:01:28]} Nxc5 {[%emt 0:00:07]} 17. Nc7 {[%emt 0:02:45]} Nba6 {[%emt 0:02:32]} 18. Nxa8 {[%emt 0:00:49]} Nd3+ {[%emt 0:00:37]} 19. Kd2 {[%emt 0:02:32]} c1=Q+ {[%emt 0:00:11]} 20. Raxc1 {[%emt 0:00:09]} Nxc1 {[%emt 0:00:05]} 21. Rxc1 {[%emt 0:00:09]} Rd8+ {[%emt 0:00:06]} 22. Ke3 {[%emt 0:04:47]} Bb7 {[%emt 0:00:06]} 23. Rc7 {[%emt 0:05:28]} Nxc7 {[%emt 0:03:09]} 24. Nxc7 {[%emt 0:00:03]} a6 {[%emt 0:00:11]} 25. Nd4 {[%emt 0:07:13]} Rc8 {[%emt 0:00:14]} 26. Nxa6 {[%emt 0:00:21]} Bxa6 {[%emt 0:00:09]} 27. b4 {[%emt 0:01:23]} Rc3+ {[%emt 0:00:32]} 28. Kd2 {[%emt 0:03:41]} Rd3+ {[%emt 0:00:07]} 0-1

[Event "SVK-ch Open 2018"]
[Site "Banska Stiavnica"]
[Date "2018.07.14"]
[Round "8"]
[White "Cabanova, Kristina"]
[Black "Budinsky, Martin"]
[Result "0-1"]
[ECO "A45"]
[WhiteElo "1691"]
[BlackElo "1985"]
[Annotator "NA"]
[PlyCount "68"]
[EventDate "2018.07.07"]
[EventType "swiss"]
[EventCountry "SVK"]
[SourceTitle "playchess.com"]
[Source "ChessBase"]
[SourceQuality "1"]
[TimeControl "40/5400+30:1800+30"]

1. d4 {[%emt 0:00:00]} Nf6 {[%emt 0:00:00]} 2. Bf4 {[%emt 0:00:14]} e6 {[%emt 0:00:06]} 3. Nf3 {[%emt 0:01:13]} c5 {[%emt 0:03:05]} 4. e3 {[%emt 0:03:04]} b6 {[%emt 0:01:00]} 5. h3 {[%emt 0:03:36]} Bb7 {[%emt 0:00:28]} 6. Be2 {[%emt 0:00:26]} Be7 {[%emt 0:00:09]} 7. c3 {[%emt 0:00:32]} Nc6 {[%emt 0:02:52]} 8. Nbd2 {[%emt 0:02:09]} d6 {[%emt 0:03:24]} 9. O-O {[%emt 0:01:38]} cxd4 {[%emt 0:00:33]} 10. exd4 {[%emt 0:00:19]} O-O {[%emt 0:00:35]} 11. Re1 {[%emt 0:01:59]} h6 {[%emt 0:01:35]} 12. Qc2 {[%emt 0:15:17]} a6 {[%emt 0:01:57]} 13. a4 {[%emt 0:00:46]} Rc8 {[%emt 0:01:18]} 14. Qb3 {[%emt 0:02:34]} Na5 {[%emt 0:02:48]} 15. Qd1 {[%emt 0:01:16]} Nd5 {[%emt 0:02:40]} 16. Bg3 {[%emt 0:02:27]} f5 {[%emt 0:13:35]} 17. Bf1 {[%emt 0:06:20]} Rf6 {[%emt 0:04:27]} 18. Nb3 {[%emt 0:05:19]} Nc4 {[%emt 0:03:57]} 19. Bxc4 {[%emt 0:05:30]} Rxc4 {[%emt 0:00:08]} 20. Qd3 {[%emt 0:01:36]} Rc8 {[%emt 0:00:58]} 21. Re2 {[%emt 0:07:52]} Kf7 {[%emt 0:04:36]} 22. Rae1 {[%emt 0:05:44]} Qh8 {[%emt 0:01:09]} 23. Nbd2 {[%emt 0:13:27]} Rg8 {[%emt 0:00:38]} 24. Nc4 {[%emt 0:00:27]} f4 {[%emt 0:00:46]} 25. Bh2 {[%emt 0:00:05]} g5 {[%emt 0:01:13]} 26. Nfd2 {[%emt 0:03:20]} f3 {[%emt 0:06:45]} 27. Nxf3 {[%emt 0:02:19]} Nf4 {[%emt 0:01:41]} 28. Bxf4 {[%emt 0:00:47]} gxf4 {[%emt 0:00:16]} 29. Kh2 {[%emt 0:01:07]} Rfg6 {[%emt 0:04:17]} 30. Rg1 {[%emt 0:01:05]} Qg7 {[%emt 0:05:29]} 31. Ne1 {[%emt 0:00:18]} Bxg2 {[%emt 0:02:40]} 32. f3 {[%emt 0:00:16]} Bf1 {[%emt 0:00:52]} 33. Qxg6+ {[%emt 0:03:31]} Qxg6 {[%emt 0:00:14]} 34. Rxf1 {[%emt 0:01:22]} Qg3+ {[%emt 0:00:13]} 0-1

[Event "SVK-ch Open 2018"]
[Site "Banska Stiavnica"]
[Date "2018.07.14"]
[Round "8"]
[White "Ihnat, Marek"]
[Black "Dylag, Emilia"]
[Result "1/2-1/2"]
[ECO "D02"]
[WhiteElo "1459"]
[BlackElo "1989"]
[Annotator "NA"]
[PlyCount "93"]
[EventDate "2018.07.07"]
[EventType "swiss"]
[EventCountry "SVK"]
[SourceTitle "playchess.com"]
[Source "ChessBase"]
[SourceQuality "1"]
[TimeControl "40/5400+30:1800+30"]

1. d4 {[%emt 0:00:14]} Nf6 {[%emt 0:00:00]} 2. Bf4 {[%emt 0:01:00]} d5 {[%emt 0:00:49]} 3. e3 {[%emt 0:01:44]} e6 {[%emt 0:01:08]} 4. Nf3 {[%emt 0:01:44]} c5 {[%emt 0:05:10]} 5. c3 {[%emt 0:01:19]} Nc6 {[%emt 0:02:04]} 6. Nbd2 {[%emt 0:02:57]} Bd6 {[%emt 0:01:59]} 7. Bxd6 {[%emt 0:09:03]} Qxd6 {[%emt 0:00:26]} 8. Bd3 {[%emt 0:02:47]} O-O {[%emt 0:01:49]} 9. O-O {[%emt 0:00:43]} e5 {[%emt 0:02:06]} 10. dxe5 {[%emt 0:01:07]} Nxe5 {[%emt 0:00:06]} 11. Nxe5 {[%emt 0:00:24]} Qxe5 {[%emt 0:00:02]} 12. Nf3 {[%emt 0:00:55]} Qe7 {[%emt 0:00:53]} 13. h3 {[%emt 0:09:00]} Bd7 {[%emt 0:02:59]} 14. Qc2 {[%emt 0:09:51]} Bc6 {[%emt 0:02:21]} 15. Rfe1 {[%emt 0:03:14]} Rfe8 {[%emt 0:01:56]} 16. Rad1 {[%emt 0:01:30]} Rad8 {[%emt 0:01:15]} 17. Qe2 {[%emt 0:10:03]} a6 {[%emt 0:04:16]} 18. Qc2 {[%emt 0:04:36]} b5 {[%emt 0:04:16]} 19. Nd2 {[%emt 0:06:45]} Qb7 {[%emt 0:09:16]} 20. Bf1 {[%emt 0:00:50]} a5 {[%emt 0:04:02]} 21. b3 {[%emt 0:08:20]} g6 {[%emt 0:10:31]} 22. Qb2 {[%emt 0:03:46]} Re6 {[%emt 0:05:59]} 23. a3 {[%emt 0:02:04]} Qe7 {[%emt 0:05:12]} 24. Qa1 {[%emt 0:09:33]} g5 {[%emt 0:10:54]} 25. g3 {[%emt 0:03:07]} Nh5 {[%emt 0:02:00]} 26. Bg2 {[%emt 0:02:10]} f5 {[%emt 0:03:11]} 27. Nf3 {[%emt 0:01:12]} g4 {[%emt 0:05:15]} 28. hxg4 {[%emt 0:00:26]} fxg4 {[%emt 0:00:05]} 29. Nh4 {[%emt 0:00:21]} Qg5 {[%emt 0:02:00]} 30. Qb2 {[%emt 0:01:42]} Rf8 {[%emt 0:02:23]} 31. Rd2 {[%emt 0:01:42]} Qe5 {[%emt 0:04:29]} 32. c4 {[%emt 0:01:20]} Qxb2 {[%emt 0:04:27]} 33. Rxb2 {[%emt 0:00:04]} dxc4 {[%emt 0:00:25]} 34. bxc4 {[%emt 0:00:22]} Bxg2 {[%emt 0:00:26]} 35. Nxg2 {[%emt 0:00:37]} b4 {[%emt 0:00:17]} 36. axb4 {[%emt 0:00:31]} cxb4 {[%emt 0:01:03]} 37. Ra1 {[%emt 0:00:45]} Rf5 {[%emt 0:00:50]} 38. Ne1 {[%emt 0:00:40]} Rc6 {[%emt 0:00:47]} 39. Rba2 {[%emt 0:00:30]} Rxc4 {[%emt 0:01:33]} 40. Rxa5 {[%emt 0:00:14]} Ng7 {[%emt 0:00:45]} 41. Rxf5 {[%emt 0:01:33]} Nxf5 {[%emt 0:00:00]} 42. Rb1 {[%emt 0:00:53]} Ne7 {[%emt 0:00:57]} 43. Nd3 {[%emt 0:05:19]} Nc6 {[%emt 0:01:16]} 44. Kf1 {[%emt 0:01:12]} Kf7 {[%emt 0:01:21]} 45. Ke2 {[%emt 0:01:25]} Ke6 {[%emt 0:06:05]} 46. Rb2 {[%emt 0:04:04]} Kd6 {[%emt 0:01:44]} 47. f4 {[%emt 0:03:21] Ke5} 1/2-1/2

[Event "SVK-ch Open 2018"]
[Site "Banska Stiavnica"]
[Date "2018.07.15"]
[Round "9"]
[White "Pacher, Milan"]
[Black "Szeberenyi, Adam"]
[Result "1/2-1/2"]
[ECO "B52"]
[WhiteElo "2467"]
[BlackElo "2372"]
[Annotator "ChessBase"]
[PlyCount "21"]
[EventDate "2018.07.07"]
[EventType "swiss"]
[EventCountry "SVK"]
[SourceTitle "playchess.com"]
[Source "ChessBase"]
[SourceQuality "1"]
[TimeControl "40/5400+30:1800+30"]

1. e4 {[%emt 0:00:00]} c5 {[%emt 0:00:00]} 2. Nf3 {[%emt 0:00:00]} d6 {[%emt 0:00:00]} 3. Bb5+ {[%emt 0:00:00]} Bd7 {[%emt 0:00:00]} 4. Bxd7+ {[%emt 0:00:00]} Qxd7 {[%emt 0:00:00]} 5. c4 {[%emt 0:00:00]} Nc6 {[%emt 0:00:00]} 6. d4 {[%emt 0:00:00]} cxd4 {[%emt 0:00:00]} 7. Nxd4 {[%emt 0:00:05]} Nf6 {[%emt 0:00:06]} 8. Nc3 {[%emt 0:00:07]} Qg4 {[%emt 0:00:13]} 9. O-O {[%emt 0:00:32]} Qxd1 {[%emt 0:00:09]} 10. Rxd1 {[%emt 0:00:03]} Rc8 {[%emt 0:01:06]} 11. b3 {[%emt 0:00:18]} 1/2-1/2

[Event "SVK-ch Open 2018"]
[Site "Banska Stiavnica"]
[Date "2018.07.15"]
[Round "9"]
[White "Druska, Juraj"]
[Black "Macko, Michal"]
[Result "1-0"]
[ECO "C00"]
[WhiteElo "2439"]
[BlackElo "2158"]
[Annotator "NA RC"]
[PlyCount "107"]
[EventDate "2018.07.07"]
[EventType "swiss"]
[EventCountry "SVK"]
[SourceTitle "playchess.com"]
[Source "ChessBase"]
[SourceQuality "1"]
[TimeControl "40/5400+30:1800+30"]

1. e4 {[%emt 0:11:22]} e6 {[%emt 0:00:00]} 2. d4 {[%emt 0:00:44]} d5 {[%emt 0:00:00]} 3. Bd3 {[%emt 0:00:09]} dxe4 {[%emt 0:00:00]} 4. Bxe4 {[%emt 0:00:05]} Nf6 {[%emt 0:00:00]} 5. Bf3 {[%emt 0:00:05]} c5 {[%emt 0:00:31]} 6. Ne2 {[%emt 0:00:05]} Nc6 {[%emt 0:00:04]} 7. Be3 {[%emt 0:00:03]} cxd4 {[%emt 0:00:16]} 8. Nxd4 {[%emt 0:00:08]} Ne5 {[%emt 0:00:05]} 9. O-O {[%emt 0:00:54]} Nxf3+ {[%emt 0:02:33]} 10. Qxf3 {[%emt 0:00:12]} Be7 {[%emt 0:00:18]} 11. Nc3 {[%emt 0:03:39]} a6 {[%emt 0:07:49]} 12. Rad1 {[%emt 0:10:11]} Qc7 {[%emt 0:02:33]} 13. Rfe1 {[%emt 0:34:28]} Bd7 {[%emt 0:06:55]} 14. Bg5 {[%emt 0:09:22]} Bc6 {[%emt 0:17:28]} 15. Nxc6 {[%emt 0:00:07]} Qxc6 {[%emt 0:00:06]} 16. Qxc6+ {[%emt 0:00:05]} bxc6 {[%emt 0:00:03]} 17. Rd3 {[%emt 0:14:52]} Rd8 {[%emt 0:05:49]} 18. Bxf6 {[%emt 0:06:30]} Bxf6 {[%emt 0:04:56]} 19. Red1 {[%emt 0:00:02]} Rxd3 {[%emt 0:00:13]} 20. Rxd3 {[%emt 0:00:05]} Ke7 {[%emt 0:00:08]} 21. Na4 {[%emt 0:01:41]} Rb8 {[%emt 0:00:28]} 22. b3 {[%emt 0:00:17]} Be5 {[%emt 0:01:12]} 23. Kf1 {[%emt 0:01:46]} h5 {[%emt 0:00:29]} 24. h3 {[%emt 0:00:44]} g6 {[%emt 0:00:10]} 25. Ke2 {[%emt 0:00:17]} Bd6 {[%emt 0:00:11]} 26. Nb2 {[%emt 0:01:10]} Rb5 {[%emt 0:07:20]} 27. Nc4 {[%emt 0:00:01]} Bc7 {[%emt 0:00:07]} 28. Nd2 {[%emt 0:00:52]} Rd5 {[%emt 0:07:06]} 29. Nc4 {[%emt 0:00:50]} Rb5 {[%emt 0:00:21]} 30. Re3 {[%emt 0:00:22]} Rd5 {[%emt 0:01:12]} 31. g4 {[%emt 0:01:35]} hxg4 {[%emt 0:03:30]} 32. hxg4 {[%emt 0:00:02]} Rd4 {[%emt 0:00:34]} 33. f3 {[%emt 0:01:01]} Rd8 {[%emt 0:00:05]} 34. Ne5 {[%emt 0:01:07]} Bxe5 {[%emt 0:01:42]} 35. Rxe5 {[%emt 0:00:01]} Rd5 {[%emt 0:00:07]} 36. Re4 {[%emt 0:00:36]} f5 {[%emt 0:05:02]} 37. Rb4 {[%emt 0:01:30]} a5 {[%emt 0:01:09]} 38. Rb7+ {[%emt 0:00:10]} Kd6 {[%emt 0:00:04]} 39. Rg7 {[%emt 0:00:50]} fxg4 {[%emt 0:00:10]} 40. fxg4 {[%emt 0:00:10]} g5 {[%emt 0:00:21]} 41. c4 {[%emt 0:31:17]} Re5+ {[%emt 0:33:50]} 42. Kd3 {[%emt 0:00:28]} c5 {[%emt 0:04:55]} 43. Ra7 {[%emt 0:00:00]} Re1 {[%emt 0:00:00]} 44. Ra6+ {[%emt 0:00:00]} Ke5 {[%emt 0:00:00]} 45. Rxa5 {[%emt 0:00:00]} Kf4 {[%emt 0:00:00]} 46. Rxc5 {[%emt 0:00:00]} e5 {[%emt 0:00:00]} 47. Rc8 {[%emt 0:00:00]} e4+ {[%emt 0:00:00]} 48. Kd2 {[%emt 0:00:00]} Ra1 {[%emt 0:00:00]} 49. Rf8+ {[%emt 0:00:00]} Kxg4 {[%emt 0:00:00]} 50. Ke3 {[%emt 0:00:00]} Re1+ {[%emt 0:00:00]} 51. Kd4 {[%emt 0:00:00]} e3 {[%emt 0:00:00]} 52. Kd3 {[%emt 0:00:00]} e2 {[%emt 0:00:00]} 53. Rf2 {[%emt 0:00:00]} Kg3 {[%emt 0:00:00]} 54. Rxe2 {[%emt 0:00:00]} 1-0

[Event "SVK-ch Open 2018"]
[Site "Banska Stiavnica"]
[Date "2018.07.15"]
[Round "9"]
[White "Gelle, Istvan"]
[Black "Nogrady, Vilmos"]
[Result "1/2-1/2"]
[ECO "A45"]
[WhiteElo "2344"]
[BlackElo "2154"]
[Annotator "NA"]
[PlyCount "117"]
[EventDate "2018.07.07"]
[EventType "swiss"]
[EventCountry "SVK"]
[SourceTitle "playchess.com"]
[Source "ChessBase"]
[SourceQuality "1"]
[TimeControl "40/5400+30:1800+30"]

1. d4 {[%emt 0:00:00]} Nf6 {[%emt 0:01:11]} 2. Bf4 {[%emt 0:00:00]} d5 {[%emt 0:00:19]} 3. e3 {[%emt 0:00:00]} c5 {[%emt 0:00:38]} 4. c3 {[%emt 0:00:00]} Qb6 {[%emt 0:02:14]} 5. Qb3 {[%emt 0:00:07] D00: 1 d4 d5: Unusual lines} c4 {[%emt 0:37:06]} 6. Qxb6 {[%emt 0:05:21] a} axb6 {[%emt 0:00:10]} 7. Nd2 {[%emt 0:00:15]} b5 {[%emt 0:09:02]} 8. a3 {[%emt 0:00:59]} Nc6 {[%emt 0:02:16]} 9. Rc1 {[%emt 0:01:24]} Nh5 $146 {[%emt 0:05:36]} ({Predecessor:} 9... Bf5 10. Be2 e6 11. Ngf3 h6 12. h3 Be7 {½-½ (31) Kosic,D (2511)-Halkias,S (2584) Hungary 2009}) 10. Bg5 {[%emt 0:03:43]} h6 {[%emt 0:02:53]} 11. Bh4 {[%emt 0:00:07]} g5 {[%emt 0:00:27]} 12. Be2 {[%emt 0:00:10]} Ng7 {[%emt 0:00:05]} 13. Bg3 {[%emt 0:00:49]} f5 {[%emt 0:11:48]} 14. h4 {[%emt 0:02:48]} g4 {[%emt 0:01:09]} 15. h5 {[%emt 0:01:25]} Be6 {[%emt 0:15:46]} 16. f3 {[%emt 0:01:34]} gxf3 {[%emt 0:00:52]} 17. Bxf3 {[%emt 0:08:50]} Bf7 {[%emt 0:00:12]} 18. Ne2 {[%emt 0:03:44]} e6 {[%emt 0:00:18]} 19. Bf4 {[%emt 0:04:10]} Kd7 {[%emt 0:01:20]} 20. Kf2 {[%emt 0:06:18]} Bd6 {[%emt 0:01:33]} 21. Rcg1 {[%emt 0:01:53]} Bxf4 {[%emt 0:00:49]} 22. exf4 {[%emt 0:01:17]} Rhg8 {[%emt 0:01:21]} 23. g4 {[%emt 0:09:09]} fxg4 {[%emt 0:00:22]} 24. Bxg4 {[%emt 0:00:08]} Ne8 {[%emt 0:01:34]} 25. Bf3 {[%emt 0:13:30]} Nf6 {[%emt 0:01:00]} 26. Rxg8 {[%emt 0:06:50]} Rxg8 {[%emt 0:00:01]} 27. Ng3 {[%emt 0:01:02]} Ne7 {[%emt 0:00:18]} 28. Re1 {[%emt 0:05:43]} Nf5 {[%emt 0:01:23]} 29. Nxf5 {[%emt 0:02:34]} exf5 {[%emt 0:00:01]} 30. Re5 {[%emt 0:01:22]} Be6 {[%emt 0:00:18]} 31. Nf1 {[%emt 0:00:45]} Ng4+ {[%emt 0:00:40]} 32. Bxg4 {[%emt 0:00:38]} Rxg4 {[%emt 0:00:04]} 33. Kf3 {[%emt 0:01:06]} Rh4 {[%emt 0:00:55]} 34. Ng3 {[%emt 0:02:50]} Rh3 {[%emt 0:02:03]} 35. Re1 {[%emt 0:04:40]} Rh4 {[%emt 0:00:25]} 36. Rh1 {[%emt 0:04:08]} Rxh1 {[%emt 0:00:01]} 37. Nxh1 {[%emt 0:00:17]} Kc6 {[%emt 0:00:34]} 38. Ke3 {[%emt 0:02:09]} Kb6 {[%emt 0:00:21]} 39. Kd2 {[%emt 0:02:22]} Ka5 {[%emt 0:00:34]} 40. Kc1 {[%emt 0:02:05]} Bf7 {[%emt 0:00:45]} 41. Ng3 {[%emt 0:30:15]} Be6 {[%emt 0:30:19]} 42. b4+ {[%emt 0:02:46]} Kb6 {[%emt 0:00:50]} 43. Nf1 {[%emt 0:00:00]} Kc7 {[%emt 0:00:00]} 44. Kb2 {[%emt 0:00:00]} Kc6 {[%emt 0:00:00]} 45. Ne3 {[%emt 0:00:00]} Kb6 {[%emt 0:00:00]} 46. Kc1 {[%emt 0:00:00]} Kc6 {[%emt 0:00:00]} 47. Kd2 {[%emt 0:00:00]} Kd6 {[%emt 0:00:00]} 48. Ke2 {[%emt 0:00:00]} Bd7 {[%emt 0:00:00]} 49. Kf3 {[%emt 0:00:00]} Ke6 $11 {[%emt 0:00:00]} 50. Kg3 {[%emt 0:00:10]} Kd6 {[%emt 0:00:00]} 51. Kh4 {[%emt 0:00:13]} Be6 {[%emt 0:00:00]} 52. Nf1 {[%emt 0:01:48]} Ke7 {[%emt 0:00:00]} 53. Nd2 {[%emt 0:00:32]} Kd6 {[%emt 0:00:00]} 54. Nf3 {[%emt 0:00:23]} Ke7 {[%emt 0:00:00]} 55. Ne5 {[%emt 0:00:10]} Kd6 {[%emt 0:01:15]} 56. Kg3 {[%emt 0:00:55]} Ke7 {[%emt 0:00:56]} 57. Kf2 {[%emt 0:00:13]} Bf7 {[%emt 0:01:22]} 58. Nxf7 {[%emt 0:00:16]} Kxf7 {[%emt 0:00:01]} 59. Ke3 {[%emt 0:00:27]} 1/2-1/2

[Event "SVK-ch Open 2018"]
[Site "Banska Stiavnica"]
[Date "2018.07.15"]
[Round "9"]
[White "Polyik, Peter"]
[Black "Balogh, Peter"]
[Result "1/2-1/2"]
[ECO "A52"]
[WhiteElo "2311"]
[BlackElo "2097"]
[Annotator "NA"]
[PlyCount "34"]
[EventDate "2018.07.07"]
[EventType "swiss"]
[EventCountry "SVK"]
[SourceTitle "playchess.com"]
[Source "ChessBase"]
[SourceQuality "1"]
[TimeControl "40/5400+30:1800+30"]

1. d4 {[%emt 0:00:00]} Nf6 {[%emt 0:06:29]} 2. c4 {[%emt 0:00:00]} e5 {[%emt 0:00:16]} 3. dxe5 {[%emt 0:00:00]} Ng4 {[%emt 0:00:06]} 4. Bf4 {[%emt 0:00:13]} g5 {[%emt 0:00:10]} 5. Bg3 {[%emt 0:00:12]} Bg7 {[%emt 0:00:08]} 6. Nf3 {[%emt 0:02:12]} Nc6 {[%emt 0:00:07]} 7. Nc3 {[%emt 0:01:06]} Ngxe5 {[%emt 0:00:38]} 8. Nxe5 {[%emt 0:00:10]} Nxe5 {[%emt 0:00:06]} 9. e3 {[%emt 0:00:29]} d6 {[%emt 0:00:18]} 10. h4 {[%emt 0:06:43]} g4 {[%emt 0:01:03]} 11. Be2 {[%emt 0:11:27]} h5 {[%emt 0:00:09]} 12. Qb3 {[%emt 0:01:31]} Be6 {[%emt 0:05:47]} 13. Nd5 {[%emt 0:02:55]} c6 {[%emt 0:01:32]} 14. Nf4 {[%emt 0:00:30]} Qa5+ {[%emt 0:00:46]} 15. Kf1 {[%emt 0:00:13]} O-O-O {[%emt 0:00:25]} 16. Nxe6 {[%emt 0:15:45]} fxe6 {[%emt 0:00:55]} 17. Qc2 {[%emt 0:00:26]} Rdf8 {[%emt 0:04:24]} 1/2-1/2

[Event "SVK-ch Open 2018"]
[Site "Banska Stiavnica"]
[Date "2018.07.15"]
[Round "9"]
[White "Urhegyi, Marton"]
[Black "Pniaczek, Marek"]
[Result "0-1"]
[ECO "C68"]
[WhiteElo "2303"]
[BlackElo "2082"]
[Annotator "NA"]
[PlyCount "110"]
[EventDate "2018.07.07"]
[EventType "swiss"]
[EventCountry "SVK"]
[SourceTitle "playchess.com"]
[Source "ChessBase"]
[SourceQuality "1"]
[TimeControl "40/5400+30:1800+30"]

1. e4 {[%emt 0:00:00]} e5 {[%emt 0:00:00]} 2. Nf3 {[%emt 0:00:00]} Nc6 {[%emt 0:00:00]} 3. Bb5 {[%emt 0:00:14]} a6 {[%emt 0:00:00]} 4. Bxc6 {[%emt 0:00:49]} dxc6 {[%emt 0:00:00]} 5. O-O {[%emt 0:00:10]} Bd6 {[%emt 0:00:02]} 6. d4 {[%emt 0:01:01]} exd4 {[%emt 0:02:15]} 7. Qxd4 {[%emt 0:18:48]} f6 {[%emt 0:01:17]} 8. Nc3 {[%emt 0:09:45]} Qe7 {[%emt 0:06:10]} 9. Be3 {[%emt 0:04:47]} Be6 {[%emt 0:13:00]} 10. Rad1 {[%emt 0:04:56]} Qf7 {[%emt 0:07:35]} 11. Ne2 {[%emt 0:13:46]} Bg4 {[%emt 0:07:09]} 12. e5 {[%emt 0:14:10]} Bxf3 {[%emt 0:01:35]} 13. exd6 {[%emt 0:00:13]} Bxe2 {[%emt 0:05:34]} 14. Qe4+ {[%emt 0:10:35]} Ne7 {[%emt 0:06:37]} 15. dxe7 {[%emt 0:02:35]} Bxd1 {[%emt 0:04:04]} 16. Rxd1 {[%emt 0:01:44]} Qxe7 {[%emt 0:01:21]} 17. Qc4 {[%emt 0:00:50]} Rd8 {[%emt 0:01:11]} 18. Re1 {[%emt 0:04:42]} Rd5 {[%emt 0:00:44]} 19. Bd2 {[%emt 0:03:09]} Re5 {[%emt 0:00:12]} 20. Be3 {[%emt 0:00:34]} Qe6 {[%emt 0:02:06]} 21. Qb4 {[%emt 0:00:22]} b6 {[%emt 0:00:24]} 22. c4 {[%emt 0:02:05]} Kf7 {[%emt 0:00:56]} 23. c5 {[%emt 0:00:11]} bxc5 {[%emt 0:01:39]} 24. Qb7 {[%emt 0:00:14]} Qd7 {[%emt 0:05:57]} 25. Qxa6 {[%emt 0:00:30]} Rhe8 {[%emt 0:00:56]} 26. a4 {[%emt 0:00:39]} f5 {[%emt 0:00:36]} 27. a5 {[%emt 0:03:02]} Re4 {[%emt 0:01:33]} 28. Rf1 {[%emt 0:00:25]} f4 {[%emt 0:09:27]} 29. Bxc5 {[%emt 0:00:13]} f3 {[%emt 0:00:27]} 30. gxf3 {[%emt 0:01:31]} R8e5 {[%emt 0:08:20]} 31. Be3 {[%emt 0:01:22]} Ra4 {[%emt 0:00:41]} 32. Rc1 {[%emt 0:01:18]} Re6 {[%emt 0:01:16]} 33. Kf1 {[%emt 0:01:11]} c5 {[%emt 0:00:42]} 34. Qa8 {[%emt 0:00:37]} Qd3+ {[%emt 0:03:05]} 35. Kg2 {[%emt 0:00:26]} Rg6+ {[%emt 0:00:16]} 36. Kh1 {[%emt 0:00:07]} Qd6 {[%emt 0:00:50]} 37. f4 {[%emt 0:00:54]} Rxa5 {[%emt 0:01:21]} 38. Qe4 {[%emt 0:00:29]} Qc6 {[%emt 0:02:26]} 39. f3 {[%emt 0:00:13]} Qxe4 {[%emt 0:01:59]} 40. fxe4 {[%emt 0:00:05]} Rb6 {[%emt 0:00:48]} 41. b4 {[%emt 0:05:48]} Rxb4 {[%emt 0:02:04]} 42. Bd2 {[%emt 0:00:15]} Ra7 {[%emt 0:00:15]} 43. Bxb4 {[%emt 0:01:34]} cxb4 {[%emt 0:00:04]} 44. Kg2 {[%emt 0:00:20]} b3 {[%emt 0:01:24]} 45. Kf3 {[%emt 0:00:55]} b2 {[%emt 0:01:53]} 46. Rb1 {[%emt 0:00:54]} Ra3+ {[%emt 0:00:14]} 47. Kf2 {[%emt 0:05:29]} Rh3 {[%emt 0:01:05]} 48. Kg1 {[%emt 0:01:30]} Rb3 {[%emt 0:00:09]} 49. Kf1 {[%emt 0:01:00]} c5 {[%emt 0:02:29]} 50. Ke1 {[%emt 0:02:47]} c4 {[%emt 0:00:31]} 51. Kd1 {[%emt 0:00:24]} c3 {[%emt 0:00:05]} 52. Kc2 {[%emt 0:00:16]} Ra3 {[%emt 0:00:07]} 53. e5 {[%emt 0:03:51]} Ke6 {[%emt 0:00:53]} 54. h4 Ra1 {[%emt 0:00:14]} 55. h5 {[%emt 0:01:08]} h6 {[%emt 0:00:08]} 0-1